Cogmind - Beta 10.2 @@@ ROGUE MODE // 2021.12.11 @ 14:56:30 Player: Zyll Result: Destroyed by G-47 Trooper with Particle Gun Performance ------------- Evolutions (0) 0 Regions Visited (2) 400 Robots Destroyed (8) 40 Value Destroyed (220) 220 Prototype IDs (0) 0 Alien Tech Used (0) 0 Bonus (0) 0 TOTAL SCORE: 660 Bonus ------- None Cogmind --------- Core Integrity 0/250 Matter 281/300 Energy 94/100 System Corruption 0% Temperature Cool (9) Movement Walking (120) Location -10/Mines Parts ------- > --- POWER (1) -------- (None) > --- PROPULSION (2) --- Aluminum Leg Aluminum Leg > --- UTILITY (2) ------ Small Storage Unit Improved Terrain Scanner > --- WEAPON (2) ------- Assault Rifle Hammer > --- INVENTORY (6) ---- Aluminum Leg Seismic Analyzer Small Laser Light Assault Rifle Peak State ------------ > --- POWER ------------ Ion Engine > --- PROPULSION ------- Aluminum Leg Aluminum Leg > --- UTILITY ---------- Small Storage Unit Terrain Scanner > --- WEAPON ----------- Battle Cannon Hammer > --- INVENTORY -------- Light Ion Engine Aluminum Leg Aluminum Leg Particle Gun Assault Rifle Light Assault Rifle [Rating: 8] Favorites ----------- Power Ion Engine Engine Ion Engine Propulsion Aluminum Leg Leg Aluminum Leg Utility Small Storage Unit Device Terrain Scanner Storage Small Storage Unit Weapon Hammer Energy Gun Small Laser Ballistic Gun Assault Rifle Ballistic Cannon Battle Cannon Impact Weapon Hammer Build | -11 -10 -10 ------- Run | Scr Mat Min Slots Evolved . | . . . Power . | . . . Propulsion . | . . . Utility . | . . . Weapon . | . . . Parts Attached 17 | 7 3 7 Power 4 | 2 1 1 Engine 4 | 2 1 1 Core . | . . . Reactor . | . . . Propulsion 4 | 2 . 2 Treads . | . . . Leg 4 | 2 . 2 Wheel . | . . . Hover . | . . . Flight . | . . . Utility 3 | 1 1 1 Device 2 | . 1 1 Storage 1 | 1 . . Processor . | . . . Hackware . | . . . Protection . | . . . Artifact . | . . . Weapon 6 | 2 1 3 Energy Gun 2 | 1 . 1 Energy Cannon . | . . . Ballistic Gun 2 | 1 . 1 Ballistic Cannon 1 | . . 1 Launcher . | . . . Special Weapon . | . . . Impact Weapon 1 | . 1 . Slashing Weapon . | . . . Piercing Weapon . | . . . Special Melee Weapon . | . . . Unidentified Prototypes . | . . . Parts Lost 6 | . . 6 Power 2 | . . 2 Propulsion 2 | . . 2 Utility . | . . . Weapon 2 | . . 2 Highest Loss Streak 4 | . . 4 Average Slot Usage (%) 95 | . 92 96 Engine 12 | . 14 11 Leg 27 | . 28 27 Device 11 | . 7 14 Storage 14 | . 14 14 Energy Gun 4 | . 8 2 Ballistic Gun 9 | . 14 5 Ballistic Cannon 3 | . . 6 Impact Weapon 10 | . 5 14 Naked Turns . | . . . Heaviest Build 15 | 12 14 15 Greatest Support 20 | 20 20 20 Greatest Overweight (x) 3 | 3 . . Average Overweight (x) . | . . . Largest Inventory Capacity 6 | 6 6 6 Average Capacity 5 | 5 6 6 Most Carried 6 | 2 4 6 Average Carried 3 | 1 3 5 Final Capacity 6 | 6 6 6 Final Carried 4 | 2 4 4 Class Distribution -------------------- 100% | Mutant Dominant Class ---------------- Mutant | -10/Materials Mutant | -10/Mines Resources | -11 -10 -10 ----------- Run | Scr Mat Min Matter Collected 410 | 225 40 145 Remotely . | . . . Salvage Created 242 | . 63 179 Parts 13 | . 10 3 Haulers Intercepted . | . . . Recyclers Shooed . | . . . Parts Field Recycled . | . . . Retrieved Matter . | . . . Parts Self-Destructed . | . . . Prevented . | . . . Kills | -11 -10 -10 ------- Run | Scr Mat Min Combat Hostiles Destroyed 7 | . 1 6 Melee 4 | . . 4 Guns 1 | . 1 . Classes Destroyed 5 | . 3 2 Builder 1 | . 1 . Recycler 1 | . . 1 Watcher 1 | . 1 . Grunt 5 | . 1 4 Assembled 2 | . . 2 Best Kill Streak 2 | . 2 2 Combat Bots Only 2 | . 1 2 Max Kills in Single Turn 1 | . 1 1 Gunslinging . | . . . Exploded . | . . . Melee 1 | . . 1 Uniques/NPCs Destroyed . | . . . Combat | -11 -10 -10 -------- Run | Scr Mat Min Damage Taken 954 | . 63 891 Core 252 | . . 252 Absorbed by Shields . | . . . Core Remaining (%) 100 | 100 . . Volleys Fired 24 | . 15 9 Largest 2 | . 2 1 Hottest 65 | . 60 65 Shots Fired 38 | . 29 9 Gun 33 | . 29 4 Cannon 5 | . . 5 Launcher . | . . . Special . | . . . Kinetic 23 | . 15 8 Thermal 15 | . 14 1 Explosive . | . . . Electromagnetic . | . . . Robot Hit Streak 7 | . 6 7 Robot Miss Streak 4 | . 4 2 Penetration Max . | . . . Secondary Targets . | . . . Shots Hit Robots 50 | . 17 33 Core Hits 13 | . 6 7 Critical Hits . | . . . Critical Kills . | . . . Critical Parts Destroyed . | . . . Melee Attacks 36 | . . 36 Impact 36 | . . 36 Slashing . | . . . Piercing . | . . . Sneak Attacks 1 | . . 1 Combat Hostiles . | . . . Follow-up Attacks . | . . . Damage Inflicted 824 | . 149 675 Guns 161 | . 149 12 Cannons 78 | . . 78 Explosions . | . . . Melee 585 | . . 585 Ramming . | . . . Kinetic 166 | . 76 90 Thermal 73 | . 73 . Explosive . | . . . Electromagnetic . | . . . Impact 585 | . . 585 Slashing . | . . . Piercing . | . . . Highest Corruption . | . . . Average Corruption . | . . . Corruption Purged . | . . . Overload Shots . | . . . Overflow Damage 65 | . . 65 Projectiles . | . . . Explosions . | . . . Melee 65 | . . 65 Knockbacks 2 | . . 2 Impact 1 | . . 1 Kinetic 1 | . . 1 Secondary . | . . . Self-Inflicted Damage . | . . . Shots . | . . . Rammed . | . . . Targets Rammed . | . . . Kicked . | . . . Crushed . | . . . Highest Temperature 30 | . 30 19 Average Temperature 14 | . 20 7 Received Heat Transfer 384 | . 36 348 Siege Activations . | . . . Robots Corrupted . | . . . Combat Hostiles . | . . . Parts Fried 3 | . . 3 Impact Corruptions 7 | . . 7 Robots Melted . | . . . Combat Hostiles . | . . . Parts Melted . | . . . Heat Transferred 175 | . 175 . Parts Sabotaged . | . . . Parts Stolen . | . . . Parts Stripped . | . . . Power Chain Reactions . | . . . Missiles Intercepted . | . . . Alert | -11 -10 -10 ------- Run | Scr Mat Min Peak Influence 96 | . 81 96 Initial 31 | . . 31 Average 62 | . 63 73 Maximum Alert Level . | . . . Low Security (%) 100 | 100 100 100 Level 1 . | . . . Level 2 . | . . . Level 3 . | . . . Level 4 . | . . . Level 5 . | . . . High Security . | . . . Max Security . | . . . Squads Dispatched 1 | . 1 . Investigation . | . . . Extermination . | . . . Reinforcement 1 | . 1 . Assault . | . . . Garrison . | . . . Intercept . | . . . Construction Impeded . | . . . Haulers Reinforced . | . . . Stealth | -11 -10 -10 --------- Run | Scr Mat Min Distress Signals 1 | . 1 . Communications Jammed . | . . . Distress Signals . | . . . Times Spotted 12 | . 4 8 Peak Tracking Total 2 | . 2 2 Tactical Retreats . | . . . Traps | -11 -10 -10 ------- Run | Scr Mat Min Traps Triggered . | . . . Indirectly . | . . . Trap Hack Attempts . | . . . Triggered . | . . . Disarmed . | . . . Reprogrammed . | . . . Reused . | . . . Traps Extracted . | . . . Installed . | . . . Triggered . | . . . Machines | -11 -10 -10 ---------- Run | Scr Mat Min Machines Disabled 1 | . 1 . Max in Single Turn 1 | . 1 . Machines Sabotaged . | . . . Garrisons Compromised . | . . . Overloaded Fab Kills . | . . . Fab Network Shutdowns . | . . . Hacking | -11 -10 -10 --------- Run | Scr Mat Min Machines Accessed 1 | . 1 . Terminals 1 | . 1 . Fabricators . | . . . Repair Stations . | . . . Recycling Units . | . . . Scanalyzers . | . . . Garrison Access . | . . . Total Hacks 8 | . 8 . Successful 4 | . 4 . Failed 4 | . 4 . Catastrophic . | . . . Database Lockouts . | . . . Manual . | . . . Terminals 8 | . 8 . Fabricators . | . . . Repair Stations . | . . . Recycling Units . | . . . Scanalyzers . | . . . Garrison Access . | . . . Terminal Hacks 4 | . 4 . Record 4 | . 4 . Fabricator Hacks . | . . . Repair Station Hacks . | . . . Recycling Unit Hacks . | . . . Scanalyzer . | . . . Garrison Access Hacks . | . . . Unauthorized Hacks . | . . . Terminals . | . . . Fabricators . | . . . Repair Stations . | . . . Recycling Units . | . . . Scanalyzers . | . . . Garrison Access . | . . . Data Cores Recovered . | . . . Used . | . . . Hacking Detections 1 | . 1 . Full Trace Events . | . . . Feedback Events . | . . . Feedback Blocked . | . . . Robot Schematics Acquired . | . . . Robots Built . | . . . Matter . | . . . Time . | . . . Total Robot Build Rating . | . . . Part Schematics Acquired . | . . . Parts Built . | . . . Matter . | . . . Time . | . . . Total Part Build Rating . | . . . Parts Repaired . | . . . Time . | . . . Parts Recycled . | . . . Recycled Matter . | . . . Retrieved Matter . | . . . Retrieved Components . | . . . Parts Scanalyzed . | . . . Part Schematics Acquired . | . . . Parts Damaged . | . . . Bothacking | -11 -10 -10 ------------ Run | Scr Mat Min Used RIF Installer . | . . . Robots Hacked . | . . . Non-combat . | . . . Combat . | . . . Robot Hacks Applied . | . . . Relay Couplers Released . | . . . Robots Rewired . | . . . Allies Hacked . | . . . Hacks Repelled . | . . . Allies | -11 -10 -10 -------- Run | Scr Mat Min Total Allies . | . . . Largest Group . | . . . Highest-Rated Group . | . . . Highest-Rated Ally . | . . . Total Orders . | . . . Ally Attacks . | . . . Total Damage . | . . . Kills . | . . . Allies Corrupted . | . . . Allies Melted . | . . . Intel | -11 -10 -10 ------- Run | Scr Mat Min Robot Analysis Total . | . . . Derelict Logs Recovered . | . . . Drone Launches . | . . . Drone Recoveries . | . . . Exploration | -11 -10 -10 ------------- Run | Scr Mat Min Turns Passed 665 | 67 250 348 Spaces Moved 342 | 44 166 132 Core 16 | 16 . . Treads . | . . . Legs 326 | 28 166 132 Wheels . | . . . Hover . | . . . Flight . | . . . Fastest Speed 50 | 50 120 120 Average Speed 120 | 124 120 120 Slowest Speed 200 | 200 120 120 Overloaded Moves . | . . . Propulsion Burnouts . | . . . Robots Hopped . | . . . Cave-ins Triggered . | . . . Exploration Rate (%) 15 | 4 15 28 Regions Visited 2 Branch Regions 1 Pre-discovered Areas . | . . . Known Exits Taken . | . . . Unknown Exits Taken 2 | 1 1 . Scrap Searched . | . . . Spaces Dug . | . . . Terrain Destroyed . | . . . Melee . | . . . Projectile . | . . . AOE . | . . . Terrain Rammed . | . . . Walls Destroyed . | . . . Machines Disabled . | . . . Actions | -11 -10 -10 --------- Run | Scr Mat Min Total 497 | 52 187 258 Wait 69 | 1 . 68 Move 340 | 43 165 132 Hop . | . . . Pick Up 8 | 1 2 5 Fast Attach 8 | 6 2 . Attach 5 | . . 5 Detach . | . . . Swap 4 | 1 1 2 Drop 3 | . 2 1 Fire 24 | . 15 9 Melee 36 | . . 36 Ram . | . . . Kick . | . . . Crush . | . . . Escape Stasis . | . . . Rewire . | . . . Trap . | . . . Miscellaneous . | . . . Route ------- -11/Scrapyard -10/Materials -10/Mines (discovered 1 exit: [*Mat]) History --------- Turn | Location | Event 28 | -11/Scrapyard | Discovered new exit (range 15) 68 | -11/Scrapyard | Entered Materials 194 | -10/Materials | Discovered new exit (range 16) 312 | -10/Materials | Build established: Mutant 318 | -10/Materials | Entered Mines 318 | -10/Mines | Discovered new exit (range 9) 437 | -10/Mines | A weapon hastily lodged in a ceiling crevice suddenly fell to the ground 467 | -10/Mines | Excavation squad dispatched 467 | -10/Mines | A large section of the Mines collapsed 636 | -10/Mines | Lost 4 parts (2p1n1w) 647 | -10/Mines | Core integrity fell below 50% 661 | -10/Mines | Core integrity fell below 20% 666 | -10/Mines | Destroyed by G-47 Trooper with Particle Gun Last Messages --------------- 00579_ Aluminum Leg fried. 00579_ Sml. Laser fried. 00581_ Acquired 11 matter. 00581_ T-07 Excavator is excavating. 00589_ Acquired Sml. Laser. 00590_ T-07 Excavator is excavating. 00592_ as-62996 sneak attacks. 00592_ T-07 Excavator destroyed. 00595_ Battle Cannon destroyed. 00596_ Acquired Seismic Analyzer. 00605_ Lgt. Ion Engine destroyed. 00605_ as-62996 destroyed. 00608_ T-07 Excavator is excavating. 00610_ Dropped Terrain Scanner. 00610_ Acquired 15 matter. 00612_ T-07 Excavator is excavating. 00648_ Particle Gun destroyed. 00657_ Destroyed Heat Sink. 00657_ G-34 Mercenary system corrupted by crushing effect. 00657_ G-34 Mercenary knocked back. Map ----- +----------------------------------------------------+ | ?#??????????????? ##??????????????#?????#????????? | | ?#??????????????? ##?????????? ? ?????????#?????? | | ???#????????????? ###??????????????????????????? | | ?????????#??????? ???#????#?#? ???#?#????????? | | ?###########?????# #???#????#?????? ????????????? | | ?# #???#?# #??????????????????#?????????? | | ?# """ """ #?????# ##########???????????????????? | | ?# """ """ ####### ## % ###????#??????#?##??? | | ## """ """ ## #######????## ##?? | | ?# ####### ## #### " =%!###??# ### | | ?# < """ #?????# ## #### % = !### | | ?# """ #?????# ## #??##### ### % " #??? | | ?# """ #???### ## ##??## ### = ###??? | | ?# ##### ## ##???## #" " #######???? | | ?##### #####??# # ####??###### #?#???????? | | ??#?## #####??# ##??????## #?????????? | | ????# #??# #??###### ##????????? | | ????# #??### #?## ## " #????????? | | ??#?# #????## ### #??#?????? | | ????# #?????##### ### " "#????????? | | ????# #??##?????## #### " # ##????????? | | ????########????????#######?# #######?????????? | | ???#???????#???#???## #??### ###??????????????? | | ?????????????###???# #### ###?#????????????? | | ???#??????????????## ##r ##??#????????????? | | ??????????#????????# @ #????? ?????????? | | ???????????????????## #??????#??????? | | ??#??????#??????????## g g ##????#??????? | | ?????????#???????????## #????????????? | | ??????????????????????## ## ##????????????? | | ???????#???????????????###### ###?????????????? | | ????????????????????????????######???????????????? | | ??????????????????#????????????#?????????????????? | | ?????????????????????????????????????????????????? | | | | | | | | | | | | | | | | | | | | | | | | | | | | | | | | | +----------------------------------------------------+ Best States ------------- Heat Dissipation 25 Energy Generation 10 Energy Capacity 250 Matter Stores 300 Matter Capacity 300 Sight Range 16 Terrain Scan Range 16 Terrain Scan Density 10 Evasion (%) 40 Item Schematics ----------------- None Robot Schematics ------------------ None Fabricated ------------ Nothing Alien Tech Used ----------------- None Achievements -------------- None Challenges ------------ None Game ------ Seed DeuteriumCorruptionSpear Manual? 0 Play Time 00:27:40 Cumulative 4.2 hours Start 2021.08.01 @ 14:52:24 End 2021.12.11 @ 14:56:30 Sessions 6 Manual Loads 0 Difficulty Rogue Special Mode None Game No. 6 Rogue 6 Adventurer 0 Explorer 0 Win Type - Total 0 Types 0/0/0/0/0/0/0/0/0 Lore% 7 Gallery% 10 Achievement% 15 Wizard Run 0 Options --------- ASCII 0 Keyboard 0 Movement Vi Keybinds 0 Fullscreen 1 Font 24/Smallcaps Map View 76x50 Tactical HUD 1 Map Filters NONE Filters NONE Steam 1 RUN: 5410bd57-2aae-452f-83f6-649b9d5092bf